Cogmind - Beta 11 X6 @@@ ROGUE MODE // 2021.07.18 @ 22:17:42 // Winter2019/RPGLIKE Player: Kenzurith Result: Destroyed by S-43 Plague with Heavy Machine Gun Performance ------------- Evolutions (9) 4500 Regions Visited (30) 6000 Robots Destroyed (119) 595 Value Destroyed (3302) 3302 Prototype IDs (257) 5140 Alien Tech Used (3) 600 Bonus (21458) 21458 TOTAL SCORE: 41595 Bonus ------- High Alert Combat Kills 123 Aligned with FarCom 300 Met Data Miner 300 Used Data Conduit 3000 Destroyed Z-Imprinter 1000 Met Zhirov 300 Met Warlord at Base 500 MAIN.C Attacked Warlord 500 Warlord Defense Kill 134 Met Warlord at Research 2000 Invited to Help at Command 2000 Pursued by Intercept 500 Met MAIN.C 5000 Destroyed MAIN.C Shell 5000 Met Warlord at Command 2000 Friendly Fire -1199 Cogmind --------- Core Integrity 0/2750 Matter 255/300 Energy 102/700 System Corruption 15% Temperature Cool (0) Movement Hovering (88) Ox1 Location -1/Command Parts ------- > --- POWER (2) -------- Vortex Chain Reactor > --- PROPULSION (7) --- Cooled Airjet Cooled Airjet Cooled Antigrav System Cooled Antigrav System Experimental Gyrokinetic Inverter > --- UTILITY (13) ----- Experimental Power Amplifier Long-range Terrain Scanner Advanced Melee Analysis Suite Experimental Target Analyzer Experimental Core Analyzer Advanced Actuator Array Advanced Reaction Control System Thermal Barrier Antimissile System > --- WEAPON (4) ------- Molecular Deconstructor Nanosword Nanosword > --- INVENTORY (5) ---- Protomatter-80 Advanced Remote Datajack Peak State ------------ > --- POWER ------------ Vortex Chain Reactor > --- PROPULSION ------- Cooled Airjet Cooled Airjet Zionite Glidesys II Zionite Glidesys II Cooled Antigrav System Cooled Antigrav System Experimental Gyrokinetic Inverter > --- UTILITY ---------- Experimental Power Amplifier Long-range Terrain Scanner Advanced Melee Analysis Suite Experimental Target Analyzer Experimental Core Analyzer Advanced Armor Integrity Analyzer Nanoactuators Advanced Actuator Array Advanced Reaction Control System Experimental Phase Shifter Centrium Light Armor Plating Thermal Barrier Antimissile System > --- WEAPON ----------- Nanosword Nanosword Particle Cleaver Particle Cleaver > --- INVENTORY -------- Protomatter Transdimensional Reconstructor Advanced Remote Datajack Molecular Deconstructor [Rating: 221] Favorites ----------- Power Micro Nuclear Core Engine Light Deuterium Engine Power Core Micro Nuclear Core Reactor Vortex Chain Reactor Propulsion Aerolev Unit Leg Aluminum Leg Hover Unit Aerolev Unit Flight Unit Xenon Bombardment Thruster Utility Improved Sensor Array Device Improved Sensor Array Processor Advanced Melee Analysis Suite Hackware Experimental System Shield Protection Improved Medium Armor Plating Weapon Longsword +1 Energy Gun Zionite Phaser-S Energy Cannon Cooled Particle Cannon Ballistic Gun Autogun Launcher Grenade Launcher Special Weapon Molecular Deconstructor Impact Weapon Heavy Flail Slashing Weapon Longsword +1 Piercing Weapon Makeshift Spear Build | -11 -10 -10 -10 -9 -8 -7 -7 -7 -7 -6 -6 -6 -6 -6 -6 -5 -5 -5 -5 -5 -4 -4 -4 -4 -4 -3 -3 -2 -1 -1 ------- Run | Scr Mat Min Exi Min Mat Fac Low Low Dat Pro Fac Low Low Zio Dee Pro Fac Upp Upp Zhi Pro Fac Upp Upp War Pro Res Res Acc Com Slots Evolved 21 | 2 1 1 . . 6 2 1 . 1 . 1 . . . . . . 1 . . . 1 1 . . . 1 2 . . Power 1 | . . . . . . . 1 . . . . . . . . . . . . . . . . . . . . . . . Propulsion 5 | 1 . . . . 4 . . . . . . . . . . . . . . . . . . . . . . . . . Utility 12 | . . 1 . . 2 2 . . 1 . 1 . . . . . . 1 . . . 1 1 . . . 1 1 . . Weapon 3 | 1 1 . . . . . . . . . . . . . . . . . . . . . . . . . . 1 . . Parts Attached 165 | 3 4 9 . 2 28 20 3 3 . 1 3 2 1 11 18 1 2 3 1 3 . 2 2 1 11 2 2 11 5 11 Power 8 | . . 2 . . 1 1 1 . . . . . . . 1 . . . . 1 . . . . 1 . . . . . Engine 2 | . . 1 . . 1 . . . . . . . . . . . . . . . . . . . . . . . . . Core 3 | . . 1 . . . 1 1 . . . . . . . . . . . . . . . . . . . . . . . Reactor 3 | . . . . . . . . . . . . . . . 1 . . . . 1 . . . . 1 . . . . . Propulsion 29 | 1 . . . . 7 12 . . . . 2 . . . 2 . . . . . . . . . 2 . . . 2 1 Treads . | . . . . . . . . . . . . . . . . . . . . . . . . . . . . . . . Leg 1 | 1 . . . . . . . . . . . . . . . . . . . . . . . . . . . . . . Wheel . | . . . . . . . . . . . . . . . . . . . . . . . . . . . . . . . Hover 22 | . . . . . 7 6 . . . . 2 . . . 2 . . . . . . . . . 2 . . . 2 1 Flight 6 | . . . . . . 6 . . . . . . . . . . . . . . . . . . . . . . . . Utility 50 | . 1 5 . . 6 3 2 3 . 1 1 . 1 6 3 . . 1 . 1 . 2 1 1 5 2 2 3 . . Device 30 | . . 3 . . 2 2 2 . . 1 1 . 1 3 2 . . 1 . . . 1 1 1 3 2 1 3 . . Storage . | . . . . . . . . . . . . . . . . . . . . . . . . . . . . . . . Processor 9 | . . . . . 1 1 . 2 . . . . . 3 . . . . . . . . . . 1 . 1 . . . Hackware 1 | . . . . . . . . . . . . . . . . . . . . . . 1 . . . . . . . . Protection 10 | . 1 2 . . 3 . . 1 . . . . . . 1 . . . . 1 . . . . 1 . . . . . Artifact . | . . . . . . . . . . . . . . . . . . . . . . . . . . . . . . . Weapon 78 | 2 3 2 . 2 14 4 . . . . . 2 . 5 12 1 2 2 1 1 . . 1 . 3 . . 8 3 10 Energy Gun 14 | 1 . . . . 6 . . . . . . . . . 4 1 1 . . . . . . . 1 . . . . . Energy Cannon 2 | . . . . . . 2 . . . . . . . . . . . . . . . . . . . . . . . . Ballistic Gun 8 | 1 3 1 . 1 . . . . . . . . . 1 1 . . . . . . . . . . . . . . . Ballistic Cannon . | . . . . . . . . . . . . . . . . . . . . . . . . . . . . . . . Launcher 7 | . . 1 . 1 2 . . . . . . . . . 2 . . . . . . . . . 1 . . . . . Special Weapon 8 | . . . . . . . . . . . . . . . . . . . . . . . 1 . 1 . . . 2 4 Impact Weapon 1 | . . . . . 1 . . . . . . . . . . . . . . . . . . . . . . . . . Slashing Weapon 25 | . . . . . 5 2 . . . . . . . 1 3 . . . 1 1 . . . . . . . 5 1 6 Piercing Weapon 13 | . . . . . . . . . . . . 2 . 3 2 . 1 2 . . . . . . . . . 3 . . Special Melee Weapon . | . . . . . . . . . . . . . . . . . . . . . . . . . . . . . . . Unidentified Prototypes 25 | . . . . . 6 4 . . . . . . 1 1 7 . . . . 1 . . 1 . 2 . . 1 . 1 Parts Lost 4 | . . . . . . . . . . . . . . . . . . . . . . . . . . . . . . 4 Power . | . . . . . . . . . . . . . . . . . . . . . . . . . . . . . . . Propulsion 2 | . . . . . . . . . . . . . . . . . . . . . . . . . . . . . . 2 Utility . | . . . . . . . . . . . . . . . . . . . . . . . . . . . . . . . Weapon 2 | . . . . . . . . . . . . . . . . . . . . . . . . . . . . . . 2 Highest Loss Streak 4 | . . . . . . . . . . . . . . . . . . . . . . . . . . . . . . 4 Average Slot Usage (%) 96 | . 88 100 100 100 86 99 100 100 97 95 97 100 99 94 98 100 100 99 99 99 100 100 98 95 91 91 90 95 95 92 Engine 2 | . 14 1 12 12 10 3 . . . . . . . . . . . . . . . . . . . . . . . . Core 4 | . . 10 . . . 2 11 11 11 11 10 10 10 10 6 5 5 4 4 2 . . . . . . . . . . Reactor 1 | . . . . . . . . . . . . . . . 3 5 5 4 4 5 9 9 8 8 4 4 4 3 3 3 Leg 4 | . 28 25 25 25 . . . . . . . . . . . . . . . . . . . . . . . . . . Hover 24 | . . . . . 17 38 35 35 34 33 31 31 30 30 33 35 35 33 33 33 33 31 30 30 30 30 29 26 26 25 Device 22 | . . 11 25 25 22 19 17 17 16 17 22 26 25 22 20 20 20 23 23 23 23 22 23 26 26 26 25 29 30 29 Processor 10 | . . . . . 7 8 11 11 11 11 10 10 10 12 15 15 15 14 14 14 14 13 13 13 16 17 19 16 15 14 Protection 5 | . 3 11 . . 8 6 5 4 5 5 5 5 5 5 5 5 5 4 4 3 4 4 4 4 3 4 4 3 3 2 Ballistic Gun 6 | . 38 33 37 37 1 . . . . . . . . . . . . . . . . . . . . . . . . . Slashing Weapon 8 | . . . . . 11 16 17 17 16 16 15 13 5 5 3 5 5 4 8 9 9 9 7 4 4 4 4 11 13 10 Piercing Weapon 1 | . . . . . . . . . . . . 1 10 10 9 8 6 3 . . . . . . . . . 1 . . Naked Turns . | . . . . . . . . . . . . . . . . . . . . . . . . . . . . . . . Heaviest Build 73 | 7 13 20 20 20 23 26 32 32 32 37 43 43 41 42 41 38 38 40 42 48 48 48 47 48 61 61 60 71 72 73 Greatest Support 101 | 20 20 20 20 20 38 53 37 37 57 53 53 45 61 53 69 45 45 85 45 61 61 61 61 61 71 71 95 95 93 101 Greatest Overweight (x) 1 | . . . . . 1 1 . . . . . . . . . . . . . . . . . . . . . . . 1 Average Overweight (x) . | . . . . . . . . . . . . . . . . . . . . . . . . . . . . . . . Largest Inventory Capacity 5 | . . 2 2 2 2 2 2 2 2 2 3 3 3 4 5 5 5 5 5 5 5 5 5 5 5 5 5 5 5 5 Average Capacity 3 | . . 1 2 2 2 2 2 2 2 2 2 3 3 3 4 5 5 5 5 5 5 5 5 5 5 5 5 5 5 5 Most Carried 5 | . . 2 2 2 2 2 2 2 2 2 3 3 3 4 5 5 5 5 5 5 5 5 5 5 5 5 5 5 5 5 Average Carried 3 | . . 1 2 2 1 1 1 2 2 2 2 2 2 3 4 5 5 4 5 4 5 4 4 5 4 5 4 4 4 4 Final Capacity 5 | . . 2 2 2 2 2 2 2 2 2 3 3 3 4 5 5 5 5 5 5 5 5 5 5 5 5 5 5 5 5 Final Carried 5 | . . 2 2 2 2 2 2 2 2 2 3 3 3 4 5 5 5 5 5 5 5 5 5 5 5 5 5 5 5 2 Class Distribution -------------------- 29% | Hacker-Scout 26% | Scout 13% | Scavenger-Scout 9% | Hacker-Ninja 8% | Gunner 6% | Skirmisher 3% | Mutant Dominant Class ---------------- Gunner | -10/Materials Gunner | -10/Mines Gunner | -10/Exiles Skirmisher | -9/Mines Scout | -8/Materials Scout | -7/Factory Scout | -7/Lower Caves Scout | -7/Lower Caves Scout | -7/Data Miner Scout | -6/Proximity Caves Hacker-Ninja | -6/Factory Hacker-Ninja | -6/Lower Caves Hacker-Ninja | -6/Lower Caves Hacker-Scout | -6/Zion Hacker-Scout | -6/Deep Caves Hacker-Scout | -5/Proximity Caves Hacker-Scout | -5/Factory Hacker-Scout | -5/Upper Caves Hacker-Scout | -5/Upper Caves Hacker-Scout | -5/Zhirov Hacker-Scout | -4/Proximity Caves Hacker-Scout | -4/Factory Hacker-Scout | -4/Upper Caves Hacker-Scout | -4/Upper Caves Hacker-Scout | -4/Warlord Hacker-Scout | -3/Proximity Caves Hacker-Scout | -3/Research Scavenger-Scout | -2/Research Scavenger-Scout | -1/Access Scavenger-Scout | -1/Command Resources | -11 -10 -10 -10 -9 -8 -7 -7 -7 -7 -6 -6 -6 -6 -6 -6 -5 -5 -5 -5 -5 -4 -4 -4 -4 -4 -3 -3 -2 -1 -1 ----------- Run | Scr Mat Min Exi Min Mat Fac Low Low Dat Pro Fac Low Low Zio Dee Pro Fac Upp Upp Zhi Pro Fac Upp Upp War Pro Res Res Acc Com Matter Collected 2707 | 200 . 542 . 126 284 82 157 50 . 10 30 . 20 34 200 84 156 32 10 20 20 20 14 21 135 25 55 110 . 270 Remotely . | . . . . . . . . . . . . . . . . . . . . . . . . . . . . . . . Salvage Created 7052 | . . 507 . 343 1165 82 147 114 . . 51 . 205 . 239 29 156 . 96 205 . 219 . . 176 158 367 956 555 1282 Parts 266 | . . 28 . 10 86 4 9 4 . . 3 . 6 . 18 . 3 . . 2 . 4 . . 5 5 17 39 14 9 Haulers Intercepted 10 | . . . . . 3 1 . . . . . . . . . . . . . . . 1 . . . . 3 1 1 . Recyclers Shooed . | . . . . . . . . . . . . . . . . . . . . . . . . . . . . . . . Parts Field Recycled . | . . . . . . . . . . . . . . . . . . . . . . . . . . . . . . . Retrieved Matter . | . . . . . . . . . . . . . . . . . . . . . . . . . . . . . . . Parts Self-Destructed 87 | . . . . . . . 13 3 . . . 6 . . . . . . . . 1 . . . 59 5 . . . . Prevented 12 | . . . . . . . . . . . . . . . . . . . . . 2 . . . 10 . . . . . Kills | -11 -10 -10 -10 -9 -8 -7 -7 -7 -7 -6 -6 -6 -6 -6 -6 -5 -5 -5 -5 -5 -4 -4 -4 -4 -4 -3 -3 -2 -1 -1 ------- Run | Scr Mat Min Exi Min Mat Fac Low Low Dat Pro Fac Low Low Zio Dee Pro Fac Upp Upp Zhi Pro Fac Upp Upp War Pro Res Res Acc Com Combat Hostiles Destroyed 73 | . . 13 . 4 28 . 3 1 . . . . 1 . 9 . . . . . . 1 . . 1 2 1 5 1 3 Melee 45 | . . . . . 24 . 3 1 . . . . 1 . 3 . . . . . . 1 . . 1 2 1 4 1 3 Guns 13 | . . 13 . . . . . . . . . . . . . . . . . . . . . . . . . . . . AOE 14 | . . . . 4 4 . . . . . . . . . 6 . . . . . . . . . . . . . . . Classes Destroyed 19 | . . 5 . 1 4 1 1 . . . . . . . 2 . . . . . . . . . 1 . . 3 . 1 Worker 10 | . . . . 3 2 1 . . . . 1 . . . . . . . . . . . . . . . . 2 1 . Builder 3 | . . . . . 1 . . . . . . . . . . . . . . . . . . . . . 1 . 1 . Hauler 10 | . . . . . 3 1 . . . . . . . . . . . . . . . 1 . . . . 3 1 1 . Recycler 10 | . . 1 . 3 2 . . . . . . . . . . . 1 . . . . . . . . . . . 2 1 Mechanic 1 | . . . . . . . . . . . . . . . . . . . . . . . . . 1 . . . . . Operator 2 | . . . . . . 1 . . . . . . . . . . . . . . . . . . . . . 1 . . Watcher 13 | . . . . . 3 . . . . . 1 . . . . . 1 . . . . . . . . . 1 2 4 1 Swarmer 24 | . . 9 . 4 11 . . . . . . . . . . . . . . . . . . . . . . . . . Grunt 19 | . . 1 . . 11 . 1 . . . . . . . . . . . . . . . . . 1 2 . 3 . . Brawler 1 | . . . . . . . . . . . . . . . . . . . . . . . . . . . . 1 . . Protector 1 | . . . . . 1 . . . . . . . . . . . . . . . . . . . . . . . . . Sentry 11 | . . 2 . . 5 . . 1 . . . . . . . . . . . . . 1 . . . . 1 . 1 . Demolisher 1 | . . 1 . . . . . . . . . . . . . . . . . . . . . . . . . . . . Programmer 2 | . . . . . . . . . . . . . . . . . . . . . . . . . . . . . . 2 Behemoth 1 | . . . . . . . . . . . . . . . . . . . . . . . . . . . . 1 . . Z-Technician 1 | . . . . . . . . . . . . . . . 1 . . . . . . . . . . . . . . . Z-Light 2 | . . . . . . . . . . . . . . . 2 . . . . . . . . . . . . . . . Decomposer 1 | . . . . . . . . . . . . . . . . 1 . . . . . . . . . . . . . . Assembled 6 | . . . . . . . . . . . . . . . 6 . . . . . . . . . . . . . . . Mutant 3 | . . . . . . . 2 . . . . . 1 . . . . . . . . . . . . . . . . . Knight 3 | . . . . . . . . . . . . . . . . . . . . . . . . . . . . 3 . . Best Kill Streak 9 | . . 4 . 6 9 1 1 1 . . 1 . 1 . 6 . 2 . . . . 2 . . 1 2 2 3 7 2 Combat Bots Only 7 | . . 3 . 4 7 . 1 1 . . . . 1 . 6 . . . . . . 1 . . 1 2 1 3 1 1 Max Kills in Single Turn 4 | . . 1 . 4 4 1 1 1 . . 1 . 1 . 2 1 1 . . . . 1 . . 1 1 1 2 1 1 Gunslinging . | . . . . . . . . . . . . . . . . . . . . . . . . . . . . . . . Exploded 4 | . . . . 3 4 . . . . . . . . . 2 . . . . . . . . . . . . . . . Melee 2 | . . . . . 1 . 1 1 . . . . 1 . 1 . . . . . . 1 . . 1 1 1 2 1 1 Uniques/NPCs Destroyed 2 | . . . . . . . . . . . . . . . 1 . . . . . . . . . . . . . . 1 Z-Imprinter (-6/Deep Caves) MAIN.C Shell (-1/Command) Combat | -11 -10 -10 -10 -9 -8 -7 -7 -7 -7 -6 -6 -6 -6 -6 -6 -5 -5 -5 -5 -5 -4 -4 -4 -4 -4 -3 -3 -2 -1 -1 -------- Run | Scr Mat Min Exi Min Mat Fac Low Low Dat Pro Fac Low Low Zio Dee Pro Fac Upp Upp Zhi Pro Fac Upp Upp War Pro Res Res Acc Com Damage Taken 7131 | . . 579 . 54 756 . 181 96 100 27 16 . 116 . 744 . 67 . . . . 354 . . 49 19 148 101 . 3724 Core 5277 | . . 388 . 38 458 . 131 80 90 16 16 . 99 . 598 . 53 . . . . 257 . . 19 19 87 72 . 2856 Absorbed by Shields . | . . . . . . . . . . . . . . . . . . . . . . . . . . . . . . . Redirected to Core 4420 | . . 307 . 38 403 . 103 45 40 16 . . 59 . 530 . 53 . . . . 218 . . 19 . 87 70 . 2432 Core Remaining (%) 75 | 100 . . . 59 100 . . . . 69 . . . . . 15 . . . . 43 . . . . 97 100 97 . . Volleys Fired 151 | . . 32 . 9 3 . . . . . . . . 1 28 2 6 12 . . 14 . . 1 5 5 3 . 4 26 Largest 3 | . . 3 . 3 1 . . . . . . . . 1 1 1 1 1 . . 1 . . 1 1 1 1 . 1 1 Hottest 69 | . . 69 . 69 33 . . . . . . . . 15 60 60 60 60 . . 60 . . . . . . . . 50 Shots Fired 227 | . . 94 . 23 3 . . . . . . . . 1 28 2 6 12 . . 14 . . 1 5 5 3 . 4 26 Gun 169 | . . 93 . 21 . . . . . . . . . 1 20 2 6 12 . . 14 . . . . . . . . . Cannon . | . . . . . . . . . . . . . . . . . . . . . . . . . . . . . . . Launcher 14 | . . 1 . 2 3 . . . . . . . . . 8 . . . . . . . . . . . . . . . Special 44 | . . . . . . . . . . . . . . . . . . . . . . . . 1 5 5 3 . 4 26 Kinetic 118 | . . 93 . 21 . . . . . . . . . 1 3 . . . . . . . . . . . . . . . Thermal . | . . . . . . . . . . . . . . . . . . . . . . . . . . . . . . . Explosive 14 | . . 1 . 2 3 . . . . . . . . . 8 . . . . . . . . . . . . . . . Electromagnetic . | . . . . . . . . . . . . . . . . . . . . . . . . . . . . . . . Phasic 51 | . . . . . . . . . . . . . . . 17 2 6 12 . . 14 . . . . . . . . . Robot Hit Streak 10 | . . 9 . 3 . . . . . . . . . . 3 . . . . . . . . . . 4 . . . 10 Robot Miss Streak 5 | . . 5 . 5 3 . . . . . . . . . 4 . . . . . . . . . . . . . . . Penetration Max . | . . . . . . . . . . . . . . . . . . . . . . . . . . . . . . . Secondary Targets 1 | . . 1 . . . . . . . . . . . . . . . . . . . . . . . . . . . . Max Gunslinging Chain 1 | . . 1 . . . . . . . . . . . . . . . . . . . . . . . . . . . . Shots Hit Robots 357 | . . 50 . 8 78 5 20 11 1 . 2 . 8 . 19 1 8 . 1 4 1 8 . . 7 5 9 29 23 59 Core Hits 181 | . . 28 . 12 38 2 5 4 . . 1 . 4 . 17 . 2 . . 3 1 3 . . 2 4 7 20 11 17 Critical Kills 1 | . . 1 . . . . . . . . . . . . . . . . . . . . . . . . . . . . Critical Parts Destroyed 1 | . . 1 . . . . . . . . . . . . . . . . . . . . . . . . . . . . Critical Strikes 22 | . . 2 . . 3 . 1 2 . . . . 1 . 1 . . . . . . 2 . . 1 . 1 2 3 3 Destroy 2 | . . 2 . . . . . . . . . . . . . . . . . . . . . . . . . . . . Sever 18 | . . . . . 3 . 1 2 . . . . 1 . . . . . . . . 2 . . 1 . 1 1 3 3 Puncture 2 | . . . . . . . . . . . . . . . 1 . . . . . . . . . . . . 1 . . Melee Attacks 561 | . . . . . 104 26 29 20 8 . 8 12 29 15 34 2 28 14 3 4 7 14 1 7 7 6 24 39 52 68 Impact 8 | . . . . . 8 . . . . . . . . . . . . . . . . . . . . . . . . . Slashing 498 | . . . . . 96 26 29 20 8 . 8 12 21 12 23 2 19 4 3 4 7 14 1 7 7 6 24 25 52 68 Piercing 55 | . . . . . . . . . . . . . 8 3 11 . 9 10 . . . . . . . . . 14 . . Sneak Attacks 43 | . . . . . 11 3 . . 1 . 1 . . . 1 1 1 . . . . 1 . . . . 4 9 8 2 Combat Hostiles 2 | . . . . . 2 . . . . . . . . . . . . . . . . . . . . . . . . . Follow-up Attacks 63 | . . . . . 4 3 2 1 . . . . . . 5 . 2 . . 1 . 1 . . . . . 8 12 24 Damage Inflicted 24715 | . . 803 . 510 4718 568 1118 974 140 . 213 . 1163 . 1266 168 540 . 158 708 137 564 . . 397 214 961 2577 2886 3932 Guns 876 | . . 777 . 99 . . . . . . . . . . . . . . . . . . . . . . . . . . Cannons . | . . . . . . . . . . . . . . . . . . . . . . . . . . . . . . . Explosions 1081 | . . 26 . 411 198 . . . . . . . . . 446 . . . . . . . . . . . . . . . Melee 22758 | . . . . . 4520 568 1118 974 140 . 213 . 1163 . 820 168 540 . 158 708 137 564 . . 397 214 961 2577 2886 3932 Ramming . | . . . . . . . . . . . . . . . . . . . . . . . . . . . . . . . Kinetic 876 | . . 777 . 99 . . . . . . . . . . . . . . . . . . . . . . . . . . Thermal . | . . . . . . . . . . . . . . . . . . . . . . . . . . . . . . . Explosive 1081 | . . 26 . 411 198 . . . . . . . . . 446 . . . . . . . . . . . . . . . Electromagnetic . | . . . . . . . . . . . . . . . . . . . . . . . . . . . . . . . Impact 91 | . . . . . 91 . . . . . . . . . . . . . . . . . . . . . . . . . Slashing 21643 | . . . . . 4429 568 1118 974 140 . 213 . 1163 . 658 168 468 . 158 708 137 564 . . 397 214 961 1787 2886 3932 Piercing 1024 | . . . . . . . . . . . . . . . 162 . 72 . . . . . . . . . . 790 . . Highest Corruption 15 | . . . . . . 2 2 2 2 2 . . 1 1 . . . . . . . . . . . . . . . 15 Average Corruption 2 | . . . . . . 2 2 2 2 2 . . 1 1 . . . . . . . . . . . . . . . 5 Corruption Purged . | . . . . . . . . . . . . . . . . . . . . . . . . . . . . . . . Effects 15 | . . . . . . . 6 4 . 1 . . . . . . . . . . . . . . . . . . . 4 Message Errors 4 | . . . . . . . 2 1 . 1 . . . . . . . . . . . . . . . . . . . . Energy Discharges 6 | . . . . . . . 2 3 . . . . . . . . . . . . . . . . . . . . . 1 Parts Rejected 1 | . . . . . . . . . . . . . . . . . . . . . . . . . . . . . . 1 Data Loss (minor) 3 | . . . . . . . 2 . . . . . . . . . . . . . . . . . . . . . . 1 Alerts 1 | . . . . . . . . . . . . . . . . . . . . . . . . . . . . . . 1 Overload Shots . | . . . . . . . . . . . . . . . . . . . . . . . . . . . . . . . Overflow Damage 4211 | . . . . 5 565 223 130 256 80 . 133 . 714 . 14 149 71 . 134 156 . 21 . . . . . 130 976 454 Projectiles . | . . . . . . . . . . . . . . . . . . . . . . . . . . . . . . . Explosions 5 | . . . . 5 . . . . . . . . . . . . . . . . . . . . . . . . . . Melee 4206 | . . . . . 565 223 130 256 80 . 133 . 714 . 14 149 71 . 134 156 . 21 . . . . . 130 976 454 Knockbacks . | . . . . . . . . . . . . . . . . . . . . . . . . . . . . . . . Impact . | . . . . . . . . . . . . . . . . . . . . . . . . . . . . . . . Kinetic . | . . . . . . . . . . . . . . . . . . . . . . . . . . . . . . . Secondary . | . . . . . . . . . . . . . . . . . . . . . . . . . . . . . . . Self-Inflicted Damage 123 | . . 25 . . 29 . . . . . . . . . 69 . . . . . . . . . . . . . . . Shots 3 | . . 1 . . 1 . . . . . . . . . 1 . . . . . . . . . . . . . . . Rammed . | . . . . . . . . . . . . . . . . . . . . . . . . . . . . . . . Targets Rammed . | . . . . . . . . . . . . . . . . . . . . . . . . . . . . . . . Kicked . | . . . . . . . . . . . . . . . . . . . . . . . . . . . . . . . Crushed . | . . . . . . . . . . . . . . . . . . . . . . . . . . . . . . . Highest Temperature 216 | . . 119 . . 19 3 17 8 39 . . . . . 216 44 66 92 . . . . . . . . . . . 1 Average Temperature 40 | . . 36 . . 9 3 7 4 24 . . . . . 62 23 27 44 . . . . . . . . . . . 1 Received Heat Transfer 917 | . . 78 . . 297 . 156 36 12 6 . . 32 . 99 . 9 . . . . 27 . . 21 9 . 54 . 81 Siege Activations . | . . . . . . . . . . . . . . . . . . . . . . . . . . . . . . . Robots Corrupted . | . . . . . . . . . . . . . . . . . . . . . . . . . . . . . . . Combat Hostiles . | . . . . . . . . . . . . . . . . . . . . . . . . . . . . . . . Parts Fried . | . . . . . . . . . . . . . . . . . . . . . . . . . . . . . . . Impact Corruptions . | . . . . . . . . . . . . . . . . . . . . . . . . . . . . . . . Robots Melted . | . . . . . . . . . . . . . . . . . . . . . . . . . . . . . . . Combat Hostiles . | . . . . . . . . . . . . . . . . . . . . . . . . . . . . . . . Parts Melted 2 | . . . . . . . . . . . . . . . . . . . . . . 1 . . . . . 1 . . Heat Transferred . | . . . . . . . . . . . . . . . . . . . . . . . . . . . . . . . Parts Sabotaged . | . . . . . . . . . . . . . . . . . . . . . . . . . . . . . . . Parts Stolen . | . . . . . . . . . . . . . . . . . . . . . . . . . . . . . . . Parts Stripped . | . . . . . . . . . . . . . . . . . . . . . . . . . . . . . . . Power Chain Reactions . | . . . . . . . . . . . . . . . . . . . . . . . . . . . . . . . Missiles Intercepted 9 | . . . . . . . . . . . . . . . . . . . . . . . . . . . . . . 9 Alert | -11 -10 -10 -10 -9 -8 -7 -7 -7 -7 -6 -6 -6 -6 -6 -6 -5 -5 -5 -5 -5 -4 -4 -4 -4 -4 -3 -3 -2 -1 -1 ------- Run | Scr Mat Min Exi Min Mat Fac Low Low Dat Pro Fac Low Low Zio Dee Pro Fac Upp Upp Zhi Pro Fac Upp Upp War Pro Res Res Acc Com Peak Influence 635 | . 44 211 . 100 635 253 . . . . 100 . . . . . 173 . . . . 308 . . . . 321 453 300 404 Initial 214 | . . 16 . . 7 214 . . . . 9 . . . . . . . . . . 2 . . . . 27 180 69 192 Average 167 | . 21 86 . 6 257 166 . . . . 69 . . . . . 65 . . . . 87 . . . . 151 273 195 266 Maximum Alert Level 2 | . . 1 . . 2 1 . . . . . . . . . . . . . . . 1 . . . . 1 2 1 2 Low Security (%) 57 | 100 100 86 . 100 45 30 . . . . 100 . . . . . 100 . . . . 92 . . . . 63 24 39 16 Level 1 32 | . . 13 . . 30 69 . . . . . . . . . . . . . . . 7 . . . . 36 52 60 80 Level 2 9 | . . . . . 23 . . . . . . . . . . . . . . . . . . . . . . 22 . 2 Level 3 . | . . . . . . . . . . . . . . . . . . . . . . . . . . . . . . . Level 4 . | . . . . . . . . . . . . . . . . . . . . . . . . . . . . . . . Level 5 . | . . . . . . . . . . . . . . . . . . . . . . . . . . . . . . . High Security . | . . . . . . . . . . . . . . . . . . . . . . . . . . . . . . . Max Security . | . . . . . . . . . . . . . . . . . . . . . . . . . . . . . . . Squads Dispatched 26 | . . . . . 7 3 . . . . . . . . . . . . . . . 1 . . . . 2 8 1 4 Investigation 3 | . . . . . 1 2 . . . . . . . . . . . . . . . . . . . . . . . . Extermination 1 | . . . . . . . . . . . . . . . . . . . . . . . . . . . . . . 1 Reinforcement 20 | . . . . . 5 1 . . . . . . . . . . . . . . . 1 . . . . 2 7 1 3 Assault 1 | . . . . . 1 . . . . . . . . . . . . . . . . . . . . . . . . . Garrison . | . . . . . . . . . . . . . . . . . . . . . . . . . . . . . . . Intercept 1 | . . . . . . . . . . . . . . . . . . . . . . . . . . . . 1 . . Construction Impeded 1 | . . . . . 1 . . . . . . . . . . . . . . . . . . . . . . . . . Haulers Reinforced 4 | . . . . . . . . . . . . . . . . . . . . . . . . . . . . 4 . . Active Scanning Responses . | . . . . . . . . . . . . . . . . . . . . . . . . . . . . . . . Cargo Convoy Interrupts . | . . . . . . . . . . . . . . . . . . . . . . . . . . . . . . . Stealth | -11 -10 -10 -10 -9 -8 -7 -7 -7 -7 -6 -6 -6 -6 -6 -6 -5 -5 -5 -5 -5 -4 -4 -4 -4 -4 -3 -3 -2 -1 -1 --------- Run | Scr Mat Min Exi Min Mat Fac Low Low Dat Pro Fac Low Low Zio Dee Pro Fac Upp Upp Zhi Pro Fac Upp Upp War Pro Res Res Acc Com Distress Signals 12 | . . . . . 1 . . . . . 1 . . . . . 1 . . . . 1 . . 1 . 1 4 1 1 Communications Jammed . | . . . . . . . . . . . . . . . . . . . . . . . . . . . . . . . Distress Signals . | . . . . . . . . . . . . . . . . . . . . . . . . . . . . . . . Times Spotted 207 | . 2 15 . 1 45 4 9 13 4 1 4 . 2 . 6 . 4 . . . . 14 . . 32 2 8 15 4 22 Peak Tracking Total 13 | . 2 3 . 4 7 2 5 4 4 1 4 . 1 . 6 . 3 . . . . 12 . . 11 2 3 6 2 13 Tactical Retreats 30 | . 1 . . . 7 1 2 7 . 1 1 . . . . . 1 . . . . 2 . . . . 3 2 1 1 Traps | -11 -10 -10 -10 -9 -8 -7 -7 -7 -7 -6 -6 -6 -6 -6 -6 -5 -5 -5 -5 -5 -4 -4 -4 -4 -4 -3 -3 -2 -1 -1 ------- Run | Scr Mat Min Exi Min Mat Fac Low Low Dat Pro Fac Low Low Zio Dee Pro Fac Upp Upp Zhi Pro Fac Upp Upp War Pro Res Res Acc Com Traps Triggered 6 | . . . . . 1 3 . . . . . . . . . . . . . . . 2 . . . . . . . . Indirectly . | . . . . . . . . . . . . . . . . . . . . . . . . . . . . . . . Trap Hack Attempts . | . . . . . . . . . . . . . . . . . . . . . . . . . . . . . . . Triggered . | . . . . . . . . . . . . . . . . . . . . . . . . . . . . . . . Disarmed . | . . . . . . . . . . . . . . . . . . . . . . . . . . . . . . . Reprogrammed . | . . . . . . . . . . . . . . . . . . . . . . . . . . . . . . . Reused . | . . . . . . . . . . . . . . . . . . . . . . . . . . . . . . . Traps Extracted . | . . . . . . . . . . . . . . . . . . . . . . . . . . . . . . . Installed . | . . . . . . . . . . . . . . . . . . . . . . . . . . . . . . . Triggered 12 | . . . . . . . . . . . . . . . . . . . . . 2 . . . 9 1 . . . . Machines | -11 -10 -10 -10 -9 -8 -7 -7 -7 -7 -6 -6 -6 -6 -6 -6 -5 -5 -5 -5 -5 -4 -4 -4 -4 -4 -3 -3 -2 -1 -1 ---------- Run | Scr Mat Min Exi Min Mat Fac Low Low Dat Pro Fac Low Low Zio Dee Pro Fac Upp Upp Zhi Pro Fac Upp Upp War Pro Res Res Acc Com Machines Disabled 9 | . . 2 . . 1 1 1 . . . . . 1 . 2 . . . . . . . 1 . . . . . . . Max in Single Turn 1 | . . 1 . . 1 . 1 . . . . . 1 . 1 . . . . . . . 1 . . . . . . . Machines Sabotaged . | . . . . . . . . . . . . . . . . . . . . . . . . . . . . . . . Garrisons Compromised . | . . . . . . . . . . . . . . . . . . . . . . . . . . . . . . . Overloaded Fab Kills . | . . . . . . . . . . . . . . . . . . . . . . . . . . . . . . . Fab Network Shutdowns . | . . . . . . . . . . . . . . . . . . . . . . . . . . . . . . . Hacking | -11 -10 -10 -10 -9 -8 -7 -7 -7 -7 -6 -6 -6 -6 -6 -6 -5 -5 -5 -5 -5 -4 -4 -4 -4 -4 -3 -3 -2 -1 -1 --------- Run | Scr Mat Min Exi Min Mat Fac Low Low Dat Pro Fac Low Low Zio Dee Pro Fac Upp Upp Zhi Pro Fac Upp Upp War Pro Res Res Acc Com Machines Accessed 57 | . 2 1 2 . 8 6 2 1 4 . 4 1 1 . . 1 4 1 1 4 . 3 . . 1 . 4 2 2 2 Terminals 38 | . 2 1 . . 8 6 . . . . 4 . 1 . . 1 3 . . . . 3 . . . . 3 2 2 2 Fabricators 2 | . . . . . . . . . . . . . . . . . 1 . . . . . . . . . 1 . . . Repair Stations . | . . . . . . . . . . . . . . . . . . . . . . . . . . . . . . . Recycling Units . | . . . . . . . . . . . . . . . . . . . . . . . . . . . . . . . Scanalyzers . | . . . . . . . . . . . . . . . . . . . . . . . . . . . . . . . Garrison Access . | . . . . . . . . . . . . . . . . . . . . . . . . . . . . . . . Total Hacks 179 | . 3 1 2 . 21 17 9 1 31 . 13 1 1 . . 1 13 1 1 13 . 20 . . 1 . 20 4 3 2 Successful 120 | . 2 1 2 . 8 8 9 1 31 . 7 1 1 . . 1 6 1 1 13 . 9 . . 1 . 13 1 1 2 Failed 59 | . 1 . . . 13 9 . . . . 6 . . . . . 7 . . . . 11 . . . . 7 3 2 . Catastrophic 16 | . . . . . 4 1 . . . . 3 . . . . . 1 . . . . 5 . . . . 1 1 . . Database Lockouts . | . . . . . . . . . . . . . . . . . . . . . . . . . . . . . . . Manual 74 | . 2 . 1 . 17 9 . . . . 6 . . . . . 6 . . . . 10 1 . 2 . 16 4 . . Terminals 115 | . 3 1 . . 21 17 . . . . 13 . 1 . . 1 11 . . . . 20 . . . . 18 4 3 2 Fabricators 4 | . . . . . . . . . . . . . . . . . 2 . . . . . . . . . 2 . . . Repair Stations . | . . . . . . . . . . . . . . . . . . . . . . . . . . . . . . . Recycling Units . | . . . . . . . . . . . . . . . . . . . . . . . . . . . . . . . Scanalyzers . | . . . . . . . . . . . . . . . . . . . . . . . . . . . . . . . Garrison Access . | . . . . . . . . . . . . . . . . . . . . . . . . . . . . . . . Terminal Hacks 99 | . 1 1 2 . 6 5 9 1 31 . 5 1 1 . . 1 4 1 1 13 . 6 . . 1 . 6 . 1 2 Record 30 | . . . 1 . . . 8 . 11 . 2 . 1 . . 1 . . . 5 . 1 . . . . . . . . Part Schematic 18 | . . . . . . . . . 9 . . . . . . . 3 . . 4 . . . . . . 2 . . . Robot Schematic 8 | . . . . . . . . . 8 . . . . . . . . . . . . . . . . . . . . . Prototype ID Bank 11 | . . . . . 1 1 . . 3 . 1 . . . . . . . . 4 . 1 . . . . . . . . Open Door 7 | . . . . . . . 1 1 . . . 1 . . . . . 1 1 . . . . . 1 . . . 1 . Level Access Points 2 | . . . . . . . . . . . . . . . . . . . . . . 1 . . . . 1 . . . Branch Access Points 5 | . . . . . 1 1 . . . . 1 . . . . . . . . . . 1 . . . . 1 . . . Terminal Index 1 | . 1 . . . . . . . . . . . . . . . . . . . . . . . . . . . . . Fabricator Index 1 | . . . . . . 1 . . . . . . . . . . . . . . . . . . . . . . . . Alert Level 3 | . . . . . . . . . . . 1 . . . . . . . . . . . . . . . 1 . . 1 Unreport Threat 4 | . . . . . 2 2 . . . . . . . . . . . . . . . . . . . . . . . . Locate Traps 1 | . . . . . . . . . . . . . . . . . . . . . . 1 . . . . . . . . Recall Reinforcements 1 | . . . . . . . . . . . . . . . . . . . . . . . . . . . 1 . . . Hauler Manifests 3 | . . . . . 2 . . . . . . . . . . . 1 . . . . . . . . . . . . . Registered Components 1 | . . . . . . . . . . . . . . . . . . . . . . 1 . . . . . . . . Zone Layout 1 | . . 1 . . . . . . . . . . . . . . . . . . . . . . . . . . . . EX-Prototype ID Bank 1 | . . . 1 . . . . . . . . . . . . . . . . . . . . . . . . . . . Disengage Seal 1 | . . . . . . . . . . . . . . . . . . . . . . . . . . . . . . 1 Fabricator Hacks 2 | . . . . . . . . . . . . . . . . . . . . . . . . . . . 2 . . . Load Schematic 1 | . . . . . . . . . . . . . . . . . . . . . . . . . . . 1 . . . Build 1 | . . . . . . . . . . . . . . . . . . . . . . . . . . . 1 . . . Repair Station Hacks . | . . . . . . . . . . . . . . . . . . . . . . . . . . . . . . . Recycling Unit Hacks . | . . . . . . . . . . . . . . . . . . . . . . . . . . . . . . . Scanalyzer . | . . . . . . . . . . . . . . . . . . . . . . . . . . . . . . . Garrison Access Hacks . | . . . . . . . . . . . . . . . . . . . . . . . . . . . . . . . Unauthorized Hacks 19 | . 1 . . . 2 3 . . . . 2 . . . . . 2 . . . . 3 . . . . 5 1 . . Terminals 19 | . 1 . . . 2 3 . . . . 2 . . . . . 2 . . . . 3 . . . . 5 1 . . Assimilate 4 | . . . . . 1 . . . . . . . . . . . . . . . . . . . . . 2 1 . . Botnet 15 | . 1 . . . 1 3 . . . . 2 . . . . . 2 . . . . 3 . . . . 3 . . . Fabricators . | . . . . . . . . . . . . . . . . . . . . . . . . . . . . . . . Repair Stations . | . . . . . . . . . . . . . . . . . . . . . . . . . . . . . . . Recycling Units . | . . . . . . . . . . . . . . . . . . . . . . . . . . . . . . . Scanalyzers . | . . . . . . . . . . . . . . . . . . . . . . . . . . . . . . . Garrison Access . | . . . . . . . . . . . . . . . . . . . . . . . . . . . . . . . Data Cores Recovered 1 | . . . . . . 1 . . . . . . . . . . . . . . . . . . . . . . . . Used 1 | . . . . . . 1 . . . . . . . . . . . . . . . . . . . . . . . . Hacking Detections 33 | . 1 1 . . 7 6 . . . . 4 . . . . . 4 . . . . 3 . . . . 4 2 1 . Full Trace Events 2 | . . . . . 1 1 . . . . . . . . . . . . . . . . . . . . . . . . Feedback Events . | . . . . . . . . . . . . . . . . . . . . . . . . . . . . . . . Feedback Blocked . | . . . . . . . . . . . . . . . . . . . . . . . . . . . . . . . Robot Schematics Acquired 8 | . . . . . . . . . 8 . . . . . . . . . . . . . . . . . . . . . Robots Built . | . . . . . . . . . . . . . . . . . . . . . . . . . . . . . . . Matter . | . . . . . . . . . . . . . . . . . . . . . . . . . . . . . . . Time . | . . . . . . . . . . . . . . . . . . . . . . . . . . . . . . . Total Robot Build Rating . | . . . . . . . . . . . . . . . . . . . . . . . . . . . . . . . Part Schematics Acquired 18 | . . . . . . . . . 9 . . . . . . . 3 . . 4 . . . . . . 2 . . . Parts Built 1 | . . . . . . . . . . . . . . . . . . . . . . . . . . . 1 . . . Matter 318 | . . . . . . . . . . . . . . . . . . . . . . . . . . . 318 . . . Time 84 | . . . . . . . . . . . . . . . . . . . . . . . . . . . 84 . . . Total Part Build Rating 6 | . . . . . . . . . . . . . . . . . . . . . . . . . . . 6 . . . Parts Repaired . | . . . . . . . . . . . . . . . . . . . . . . . . . . . . . . . Time . | . . . . . . . . . . . . . . . . . . . . . . . . . . . . . . . Parts Recycled . | . . . . . . . . . . . . . . . . . . . . . . . . . . . . . . . Recycled Matter . | . . . . . . . . . . . . . . . . . . . . . . . . . . . . . . . Retrieved Matter . | . . . . . . . . . . . . . . . . . . . . . . . . . . . . . . . Retrieved Components . | . . . . . . . . . . . . . . . . . . . . . . . . . . . . . . . Parts Scanalyzed . | . . . . . . . . . . . . . . . . . . . . . . . . . . . . . . . Part Schematics Acquired . | . . . . . . . . . . . . . . . . . . . . . . . . . . . . . . . Parts Damaged . | . . . . . . . . . . . . . . . . . . . . . . . . . . . . . . . Bothacking | -11 -10 -10 -10 -9 -8 -7 -7 -7 -7 -6 -6 -6 -6 -6 -6 -5 -5 -5 -5 -5 -4 -4 -4 -4 -4 -3 -3 -2 -1 -1 ------------ Run | Scr Mat Min Exi Min Mat Fac Low Low Dat Pro Fac Low Low Zio Dee Pro Fac Upp Upp Zhi Pro Fac Upp Upp War Pro Res Res Acc Com Used RIF Installer . | . . . . . . . . . . . . . . . . . . . . . . . . . . . . . . . Robots Hacked 2 | . . . . . . . . . . . . . . . . . . . . . . . . . . . . . . 2 Non-combat . | . . . . . . . . . . . . . . . . . . . . . . . . . . . . . . . Combat 2 | . . . . . . . . . . . . . . . . . . . . . . . . . . . . . . 2 Robot Hacks Applied 2 | . . . . . . . . . . . . . . . . . . . . . . . . . . . . . . 2 parse_system 2 | . . . . . . . . . . . . . . . . . . . . . . . . . . . . . . 2 Relay Couplers Released . | . . . . . . . . . . . . . . . . . . . . . . . . . . . . . . . Robots Rewired 3 | . . . . . . . 3 . . . . . . . . . . . . . . . . . . . . . . . Allies Hacked . | . . . . . . . . . . . . . . . . . . . . . . . . . . . . . . . Hacks Repelled . | . . . . . . . . . . . . . . . . . . . . . . . . . . . . . . . Allies | -11 -10 -10 -10 -9 -8 -7 -7 -7 -7 -6 -6 -6 -6 -6 -6 -5 -5 -5 -5 -5 -4 -4 -4 -4 -4 -3 -3 -2 -1 -1 -------- Run | Scr Mat Min Exi Min Mat Fac Low Low Dat Pro Fac Low Low Zio Dee Pro Fac Upp Upp Zhi Pro Fac Upp Upp War Pro Res Res Acc Com Total Allies 8 | . . . . . . 3 3 . . . . . . . . . . . . . . . . . . . 1 1 . . Largest Group 3 | . . . . . . 3 3 . . . . . . . . . . . . . . . . . . . 1 1 . . Highest-Rated Group 93 | . . . . . . 93 93 . . . . . . . . . . . . . . . . . . . 10 26 . . Highest-Rated Ally 31 | . . . . . . 31 31 . . . . . . . . . . . . . . . . . . . 10 26 . . Total Orders 2 | . . . . . . . . . . . . . . . . . . . . . . . . . . . 1 1 . . STAY 2 | . . . . . . . . . . . . . . . . . . . . . . . . . . . 1 1 . . Ally Attacks 37 | . . . . . . 16 21 . . . . . . . . . . . . . . . . . . . . . . . Total Damage 550 | . . . . . . 212 338 . . . . . . . . . . . . . . . . . . . . . . . Kills 4 | . . . . . . 2 2 . . . . . . . . . . . . . . . . . . . . . . . Allies Corrupted . | . . . . . . . . . . . . . . . . . . . . . . . . . . . . . . . Allies Melted . | . . . . . . . . . . . . . . . . . . . . . . . . . . . . . . . Intel | -11 -10 -10 -10 -9 -8 -7 -7 -7 -7 -6 -6 -6 -6 -6 -6 -5 -5 -5 -5 -5 -4 -4 -4 -4 -4 -3 -3 -2 -1 -1 ------- Run | Scr Mat Min Exi Min Mat Fac Low Low Dat Pro Fac Low Low Zio Dee Pro Fac Upp Upp Zhi Pro Fac Upp Upp War Pro Res Res Acc Com Robot Analysis Total 119 | . . . . . . . . . 119 . . . . . . . . . . . . . . . . . . . . . Derelict Logs Recovered 24 | . . 2 . 1 . . 2 2 . 2 . 3 1 1 . 1 . 2 3 . . . 3 1 . . . . . . Drone Launches . | . . . . . . . . . . . . . . . . . . . . . . . . . . . . . . . Drone Recoveries . | . . . . . . . . . . . . . . . . . . . . . . . . . . . . . . . Exploration | -11 -10 -10 -10 -9 -8 -7 -7 -7 -7 -6 -6 -6 -6 -6 -6 -5 -5 -5 -5 -5 -4 -4 -4 -4 -4 -3 -3 -2 -1 -1 ------------- Run | Scr Mat Min Exi Min Mat Fac Low Low Dat Pro Fac Low Low Zio Dee Pro Fac Upp Upp Zhi Pro Fac Upp Upp War Pro Res Res Acc Com Turns Passed 11361 | 15 133 910 260 738 1392 576 654 570 50 130 251 333 440 302 370 148 159 364 271 61 206 139 93 234 546 145 240 1017 257 357 Spaces Moved 17734 | 9 105 616 216 594 1222 913 1182 1270 91 373 315 885 1123 815 622 335 307 861 775 139 396 324 273 568 772 317 550 873 464 429 Core . | . . . . . . . . . . . . . . . . . . . . . . . . . . . . . . . Treads . | . . . . . . . . . . . . . . . . . . . . . . . . . . . . . . . Legs 1578 | 9 105 616 216 594 38 . . . . . . . . . . . . . . . . . . . . . . . . . Wheels . | . . . . . . . . . . . . . . . . . . . . . . . . . . . . . . . Hover 16155 | . . . . . 1184 912 1182 1270 91 373 315 885 1123 815 622 335 307 861 775 139 396 324 273 568 772 317 550 873 464 429 Flight 1 | . . . . . . 1 . . . . . . . . . . . . . . . . . . . . . . . . Fastest Speed 18 | 120 120 120 120 120 42 30 38 38 26 30 30 34 22 30 22 34 34 18 34 31 31 31 31 31 31 31 18 18 28 21 Average Speed 42 | 120 120 120 120 120 53 45 38 38 35 30 33 34 33 30 31 34 34 33 34 32 31 31 31 31 31 31 28 27 28 30 Slowest Speed 120 | 120 120 120 120 120 120 110 42 38 38 34 34 34 34 30 34 34 34 34 34 34 31 31 31 31 31 31 31 28 30 88 Overloaded Moves 62 | . . . . . . . . . 15 . . . 9 . 16 . . 6 . . . . . . . . 10 3 . 3 Propulsion Burnouts . | . . . . . . . . . . . . . . . . . . . . . . . . . . . . . . . Robots Hopped . | . . . . . . . . . . . . . . . . . . . . . . . . . . . . . . . Cave-ins Triggered 1 | . . . . . . . . . . . . . . . 1 . . . . . . . . . . . . . . . Exploration Rate (%) 57 | 2 18 99 60 93 86 31 97 96 78 63 12 94 89 82 70 53 15 87 95 60 55 12 55 76 79 51 18 14 14 17 Regions Visited 30 Branch Regions 21 Pre-discovered Areas 34 | . . . 1 1 . . 1 . 24 1 . . . 1 . . . 1 . 3 . . . 1 . . . . . . Known Exits Taken 24 | . . . . . 1 1 1 1 1 1 1 1 1 1 1 1 1 1 1 1 1 1 1 1 1 1 1 1 . . Unknown Exits Taken 6 | 1 1 1 1 1 . . . . . . . . . . . . . . . . . . . . . . . . 1 . Scrap Searched 32 | . . 2 . 2 . . 2 1 . 1 . . 3 4 . 2 . 3 4 . 4 . 2 1 . 1 . . . . Spaces Dug 196 | . . . . . 15 14 5 5 1 . 4 9 12 2 21 3 19 20 . . 18 4 . 7 . 2 15 3 12 5 Terrain Destroyed 341 | . . 7 . 5 46 14 5 5 1 . 4 9 12 2 119 3 19 22 . . 20 4 . 7 . 2 15 3 12 5 Melee 148 | . . . . . 15 14 5 5 1 . 4 9 12 2 3 1 13 10 . . 6 4 . 7 . 2 15 3 12 5 Projectile 52 | . . . . . . . . . . . . . . . 18 2 6 12 . . 14 . . . . . . . . . AOE 141 | . . 7 . 5 31 . . . . . . . . . 98 . . . . . . . . . . . . . . . Terrain Rammed . | . . . . . . . . . . . . . . . . . . . . . . . . . . . . . . . Walls Destroyed . | . . . . . . . . . . . . . . . . . . . . . . . . . . . . . . . Machines Disabled . | . . . . . . . . . . . . . . . . . . . . . . . . . . . . . . . Actions | -11 -10 -10 -10 -9 -8 -7 -7 -7 -7 -6 -6 -6 -6 -6 -6 -5 -5 -5 -5 -5 -4 -4 -4 -4 -4 -3 -3 -2 -1 -1 --------- Run | Scr Mat Min Exi Min Mat Fac Low Low Dat Pro Fac Low Low Zio Dee Pro Fac Upp Upp Zhi Pro Fac Upp Upp War Pro Res Res Acc Com Total 20954 | 12 111 735 217 604 1855 1057 1370 1347 103 389 455 907 1168 858 745 363 333 911 780 149 457 353 280 616 1061 349 616 1625 555 573 Wait 2118 | . 1 59 . . 436 85 104 56 7 16 127 . 20 2 24 24 . 23 . . 31 15 2 39 207 20 27 696 43 54 Move 17703 | 8 104 615 215 593 1221 912 1181 1269 90 372 314 884 1122 814 620 334 306 860 774 138 395 323 272 567 771 316 549 872 463 429 Hop . | . . . . . . . . . . . . . . . . . . . . . . . . . . . . . . . Pick Up 42 | . . 3 1 . . 2 1 1 . . 2 1 1 6 7 . . 1 1 1 . 1 . . 1 . 1 4 3 4 Fast Attach 102 | 3 3 5 . . 22 20 2 2 . 1 1 2 2 7 12 . . 1 1 3 . . 1 . 6 . 2 4 1 1 Attach 19 | . . . . . 2 . 1 . . . . . . . . . . 2 . . . 1 1 . . . . 4 1 7 Detach 12 | . . . . . 5 . . 1 . . . 1 . . . . . 1 . . . . 2 . 1 . . 1 . . Swap 47 | . 1 4 . 2 4 . . 1 . . 2 . . 4 6 1 2 . . 1 . 1 . 1 5 2 . 3 3 4 Drop 127 | 1 2 7 1 . 19 20 2 2 . . 3 3 2 12 17 . . 1 2 3 . 1 1 1 10 . 2 6 5 4 Fire 151 | . . 32 . 9 3 . . . . . . . . 1 28 2 6 12 . . 14 . . 1 5 5 3 . 4 26 Melee 421 | . . . . . 96 18 24 15 6 . 6 9 21 12 23 2 19 10 2 3 7 11 1 7 7 6 24 27 27 38 Ram . | . . . . . . . . . . . . . . . . . . . . . . . . . . . . . . . Kick . | . . . . . . . . . . . . . . . . . . . . . . . . . . . . . . . Crush . | . . . . . . . . . . . . . . . . . . . . . . . . . . . . . . . Escape Stasis 1 | . . . . . . . . . . . . . . . 1 . . . . . . . . . . . . . . . Rewire 42 | . . . . . . . 42 . . . . . . . . . . . . . . . . . . . . . . . Trap . | . . . . . . . . . . . . . . . . . . . . . . . . . . . . . . . Miscellaneous 169 | . . 10 . . 47 . 13 . . . . 7 . . 7 . . . . . 10 . . . 48 . 8 8 5 6 Route ------- -11/Scrapyard -10/Materials -10/Mines (discovered 3 exits: [*Mat x2] / *Exi) -10/Exiles (discovered 2 exits: [*Min x2]) -9/Mines (discovered 2 exits: *Mat x2) -8/Materials (discovered 3 exits: *Fac x3) -7/Factory (discovered 4 exits: *Sto x2 / *Low x2) -7/Lower Caves (discovered 2 exits: *Low / *Dat) -7/Lower Caves (discovered 2 exits: *Fac / *Dat) -7/Data Miner -6/Proximity Caves -6/Factory (discovered 4 exits: *Low x2 / Ext x2) -6/Lower Caves -6/Lower Caves (discovered 2 exits: *Fac / *Zio) -6/Zion (discovered 2 exits: *Dee / [*Pro]) -6/Deep Caves -5/Proximity Caves -5/Factory (discovered 3 exits: Fac x2 / *Upp) -5/Upper Caves -5/Upper Caves (discovered 2 exits: *Fac / *Zhi) -5/Zhirov -4/Proximity Caves -4/Factory (discovered 7 exits: Res x4 / *Upp x2 / Arm) -4/Upper Caves -4/Upper Caves (discovered 2 exits: *Res / *War) -4/Warlord -3/Proximity Caves -3/Research (discovered 5 exits: *Res x3 / Qua x2) -2/Research -1/Access (discovered 2 exits: [Sur] / *Com) -1/Command History --------- Turn | Location | Event 1 | -11/Scrapyard | Upgraded with Propulsion slot (x1) 1 | -11/Scrapyard | Upgraded with Weapon slot (x1) 1 | -11/Scrapyard | Discovered new exit (range 1) 16 | -11/Scrapyard | Entered Materials 37 | -10/Materials | Upgraded with Weapon slot (x1) 91 | -10/Materials | Discovered new exit (range 11) 149 | -10/Materials | Entered Mines 211 | -10/Mines | Discovered new exit (range 8) 247 | -10/Mines | Upgraded with Utility slot (x1) 311 | -10/Mines | Build established: Gunner 396 | -10/Mines | Assembled infested the area 422 | -10/Mines | Reached level 2 558 | -10/Mines | Discovered new exit (range 7) 611 | -10/Mines | Learned 4 Materials zone layouts 619 | -10/Mines | A weapon hastily lodged in a ceiling crevice suddenly fell to the ground 748 | -10/Mines | Build established: Mutant 760 | -10/Mines | Discovered new exit (range 5) 911 | -10/Mines | Received a Rocket Launcher from a helpful Derelict 1059 | -10/Mines | Entered Exiles 1075 | -10/Exiles | Discovered new exit (range 15) 1084 | -10/Exiles | Build established: Gunner 1089 | -10/Exiles | Met 8R-AWN 1110 | -10/Exiles | Met EX-HEX 1141 | -10/Exiles | Met EX-BIN 1155 | -10/Exiles | Aligned with FarCom system 1157 | -10/Exiles | Given EX-Vault access code 1184 | -10/Exiles | Opened EX-Vault 1193 | -10/Exiles | Found Longsword +1 1219 | -10/Exiles | Warned to stay clear of 0b10 Research branches 1255 | -10/Exiles | Met EX-DEC 1263 | -10/Exiles | Learned location of Zion (-6) 1309 | -10/Exiles | Discovered new exit (range 10) 1319 | -10/Exiles | Left Exiles lab with Longsword +1 1319 | -10/Exiles | Entered Mines 1321 | -9/Mines | Reached level 3 1391 | -9/Mines | Discovered new exit (range 7) 1419 | -9/Mines | Learned location of 1 exit from Materials 1487 | -9/Mines | Discovered new exit (range 5) 1563 | -9/Mines | Found a hidden stash of uninstalled traps 1613 | -9/Mines | Build established: Skirmisher 1851 | -9/Mines | Learned location of Storage (-7) 2057 | -9/Mines | Entered Materials 2058 | -8/Materials | Identified exit to Factory 2059 | -8/Materials | Reached level 4 2173 | -8/Materials | Upgraded with Utility slot (x1) 2215 | -8/Materials | Upgraded with Utility slot (x1) 2686 | -8/Materials | Reached level 5 2696 | -8/Materials | Build established: Scout 2752 | -8/Materials | Destroyed 7 combat bots 2799 | -8/Materials | Discovered exit to Factory (range 3) 2809 | -8/Materials | Reached level 6 2840 | -8/Materials | Discovered exit to Factory (range 16) 2857 | -8/Materials | First assault squad dispatched 3153 | -8/Materials | Reached level 7 3438 | -8/Materials | Upgraded with Propulsion slot (x1) 3440 | -8/Materials | Upgraded with Propulsion slot (x1) 3442 | -8/Materials | Upgraded with Propulsion slot (x2) 3449 | -8/Materials | Entered Factory 3450 | -7/Factory | Identified exit to Storage 3451 | -7/Factory | Reached level 8 3549 | -7/Factory | Upgraded with Utility slot (x1) 3726 | -7/Factory | Upgraded with Utility slot (x1) 3887 | -7/Factory | Identified exit to Lower Caves 3951 | -7/Factory | Allied Derelicts emerged from ambush trap array 4025 | -7/Factory | Entered Lower Caves 4026 | -7/Lower Caves | A Derelict revealed a hidden shortcut to meet someone special 4027 | -7/Lower Caves | Reached level 9 4027 | -7/Lower Caves | Upgraded with Power slot (x1) 4041 | -7/Lower Caves | Identified exit to Data Miner 4079 | -7/Lower Caves | Learned Factory stockpile data 4189 | -7/Lower Caves | Identified exit to Lower Caves 4191 | -7/Lower Caves | Learned Factory trap positions 4191 | -7/Lower Caves | Learned Factory emergency access door positions 4191 | -7/Lower Caves | Learned Extension emergency access door positions 4191 | -7/Lower Caves | Learned Factory stockpile data 4191 | -7/Lower Caves | Learned Armory stockpile data 4191 | -7/Lower Caves | Learned Extension security intel 4191 | -7/Lower Caves | Learned Research terminal intel 4307 | -7/Lower Caves | Attacked by a delusional Derelict stockpiling Unaware 4617 | -7/Lower Caves | Attacked by a faux Warlord 4679 | -7/Lower Caves | Entered another Lower Caves area 4714 | -7/Lower Caves | Discovered new exit (range 14) 4770 | -7/Lower Caves | Learned Factory security intel 4926 | -7/Lower Caves | Attracted the attention of an 0b10 checkpoint 5195 | -7/Lower Caves | Reached level 10 5249 | -7/Lower Caves | Entered Data Miner 5249 | -7/Data Miner | Discovered new exit (range 7) 5257 | -7/Data Miner | Met Data Miner 5263 | -7/Data Miner | Learned location of Section 7 (-3) 5263 | -7/Data Miner | Acquired the access code to Warlord's prototype stash 5270 | -7/Data Miner | Received God Mode back door access code from Data Miner 5270 | -7/Data Miner | Upgraded with Utility slot (x1) 5275 | -7/Data Miner | Reached level 11 5275 | -7/Data Miner | Interfaced with the Data Conduit 5299 | -7/Data Miner | Identified exit to Proximity Caves 5299 | -7/Data Miner | Entered Proximity Caves 5301 | -6/Proximity Caves | Reached level 12 5348 | -6/Proximity Caves | Identified exit to Factory 5429 | -6/Proximity Caves | Entered Factory 5430 | -6/Factory | Loaded intel: 77 trap records 5431 | -6/Factory | Reached level 13 5434 | -6/Factory | Loaded intel: 229 machine locations 5516 | -6/Factory | Upgraded with Utility slot (x1) 5654 | -6/Factory | Identified exit to Lower Caves 5654 | -6/Factory | Identified exit to Extension 5680 | -6/Factory | Entered Lower Caves 5723 | -6/Lower Caves | Learned 12 Factory zone layouts 5760 | -6/Lower Caves | Learned Factory security intel 5796 | -6/Lower Caves | Build established: Hacker-Ninja 5881 | -6/Lower Caves | Spotted B-75 Beast 5903 | -6/Lower Caves | Encountered a Warlord checkpoint 5905 | -6/Lower Caves | Learned 8 Factory zone layouts 5968 | -6/Lower Caves | Discovered new exit (range 12) 6013 | -6/Lower Caves | Identified exit to Lower Caves 6013 | -6/Lower Caves | Entered another Lower Caves area 6015 | -6/Lower Caves | Reached level 14 6023 | -6/Lower Caves | Discovered new exit (range 16) 6036 | -6/Lower Caves | Identified exit to Factory 6107 | -6/Lower Caves | Encountered a Warlord checkpoint 6185 | -6/Lower Caves | Attacked by a delusional Derelict stockpiling parts 6221 | -6/Lower Caves | Spotted B-75 Beast 6264 | -6/Lower Caves | Learned Factory trap positions 6402 | -6/Lower Caves | Found Alien Artifact 6402 | -6/Lower Caves | Identified Core Expander 6402 | -6/Lower Caves | Installed Core Expander, added new Propulsion slot 6447 | -6/Lower Caves | Discovered new exit (range 10) 6453 | -6/Lower Caves | Identified exit to Zion 6453 | -6/Lower Caves | Entered Zion 6481 | -6/Zion | Found Prototype Device 6481 | -6/Zion | Identified Mobile Refinery Mk. CCLXVII 6489 | -6/Zion | Discovered new exit (range 9) 6501 | -6/Zion | System corruption cleaned by Quarantine Array 6528 | -6/Zion | Found Exp. Signal Interpreter 6530 | -6/Zion | Found Exp. Target Analyzer 6532 | -6/Zion | Found Exp. System Shield 6568 | -6/Zion | Found CR-A16's Pointy Stick 6575 | -6/Zion | Given the Hacking Drone Bay 6582 | -6/Zion | Identified exit to Deep Caves 6588 | -6/Zion | Found GAL Module 6649 | -6/Zion | Learned Factory recycling unit intel 6744 | -6/Zion | Saw the warning signs outside the Deep Caves entrance 6755 | -6/Zion | Entered Deep Caves 6757 | -6/Deep Caves | Reached level 15 6805 | -6/Deep Caves | Z-Facility disabled 6814 | -6/Deep Caves | Attacked by Z-Imprinter 6823 | -6/Deep Caves | Core integrity fell below 50% 6826 | -6/Deep Caves | Destroyed Z-Imprinter 6841 | -6/Deep Caves | Build established: Hacker-Scout 6851 | -6/Deep Caves | Found Prototype Device 6851 | -6/Deep Caves | Identified Zio. Metafield Generator 7042 | -6/Deep Caves | Crushed by falling debris 7043 | -6/Deep Caves | Core integrity fell below 20% 7088 | -6/Deep Caves | Discovered new exit (range 16) 7124 | -6/Deep Caves | Identified exit to Proximity Caves 7125 | -6/Deep Caves | Entered Proximity Caves 7127 | -5/Proximity Caves | Reached level 16 7197 | -5/Proximity Caves | Learned 8 Factory zone layouts 7265 | -5/Proximity Caves | Discovered exit to Factory (range 4) 7273 | -5/Proximity Caves | Entered Factory 7274 | -5/Factory | Identified exit to Factory 7274 | -5/Factory | Identified exit to Upper Caves 7274 | -5/Factory | Core integrity fell below 50% 7274 | -5/Factory | Core integrity fell below 20% 7275 | -5/Factory | Loaded intel: 118 trap records 7275 | -5/Factory | Reached level 17 7278 | -5/Factory | Loaded intel: 297 machine locations 7279 | -5/Factory | Loaded intel: 6 recycling unit locations 7432 | -5/Factory | Entered Upper Caves 7435 | -5/Upper Caves | Upgraded with Utility slot (x1) 7618 | -5/Upper Caves | Identified exit to Upper Caves 7796 | -5/Upper Caves | Entered another Upper Caves area 7798 | -5/Upper Caves | Reached level 18 7822 | -5/Upper Caves | Discovered exit to Factory (range 11) 7878 | -5/Upper Caves | Learned Factory garrison access intel 7906 | -5/Upper Caves | Learned Factory stockpile data 7930 | -5/Upper Caves | Learned 4 Factory zone layouts 8059 | -5/Upper Caves | Discovered new exit (range 15) 8064 | -5/Upper Caves | Identified exit to Zhirov 8067 | -5/Upper Caves | Entered Zhirov 8067 | -5/Zhirov | Discovered new exit (range 3) 8074 | -5/Zhirov | Met Zhirov 8083 | -5/Zhirov | Zhirov requested help retrieving the SGEMP Prototype 8089 | -5/Zhirov | Found Alien Artifact 8089 | -5/Zhirov | Identified Integrated Dissipator 8089 | -5/Zhirov | Installed Integrated Dissipator, increased core heat dissipation (+20) 8116 | -5/Zhirov | Found Alien Artifact 8127 | -5/Zhirov | Identified exit to Proximity Caves 8128 | -5/Zhirov | Entered Proximity Caves 8130 | -4/Proximity Caves | Reached level 19 8328 | -4/Proximity Caves | Discovered exit to Factory (range 8) 8334 | -4/Proximity Caves | Entered Factory 8335 | -4/Factory | Core integrity fell below 50% 8336 | -4/Factory | Reached level 20 8337 | -4/Factory | Loaded intel: 297 machine locations 8338 | -4/Factory | Loaded intel: 4 garrison access locations 8372 | -4/Factory | Upgraded with Utility slot (x1) 8404 | -4/Factory | Identified exit to Research 8423 | -4/Factory | Identified exit to Upper Caves 8423 | -4/Factory | Identified exit to Armory 8467 | -4/Factory | Core integrity fell below 20% 8471 | -4/Factory | Reached level 21 8473 | -4/Factory | Entered Upper Caves 8486 | -4/Upper Caves | Spotted B-86 Titan 8532 | -4/Upper Caves | Acquired the password to a Derelict Tinkerer's latest research 8533 | -4/Upper Caves | Upgraded with Utility slot (x1) 8537 | -4/Upper Caves | Found Prototype Special Weapon 8537 | -4/Upper Caves | Identified Molecular Deconstructor 8549 | -4/Upper Caves | Learned location of 1 exit from Proximity Caves 8552 | -4/Upper Caves | Learned 4 Research zone layouts 8561 | -4/Upper Caves | Discovered new exit (range 14) 8566 | -4/Upper Caves | Identified exit to Upper Caves 8566 | -4/Upper Caves | Entered another Upper Caves area 8582 | -4/Upper Caves | Discovered exit to Research (range 16) 8785 | -4/Upper Caves | Discovered new exit (range 14) 8799 | -4/Upper Caves | Identified exit to Warlord 8800 | -4/Upper Caves | Entered Warlord 8802 | -4/Warlord | Reached level 22 8836 | -4/Warlord | Met Warlord 8839 | -4/Warlord | Opened Warlord's prototype stash 8841 | -4/Warlord | Found Vortex Chain Reactor 8843 | -4/Warlord | Found Exp. Phase Shifter 8852 | -4/Warlord | Found Exp. Core Analyzer 8855 | -4/Warlord | Found Thermal Barrier 8861 | -4/Warlord | Warlord's base attacked by MAIN.C 9078 | -4/Warlord | Found Prototype Launcher 9078 | -4/Warlord | Identified Vortex Catalyst Activator 9081 | -4/Warlord | Found Prototype Energy Gun 9081 | -4/Warlord | Identified Vortex Shotgun 9172 | -4/Warlord | Warlord forces counterattacked 9207 | -4/Warlord | Spotted Striker 9235 | -4/Warlord | Spotted Executioner 9295 | -4/Warlord | Spotted Striker 9297 | -4/Warlord | Spotted Striker 9328 | -4/Warlord | Spotted Executioner 9341 | -4/Warlord | Discovered new exit (range 14) 9345 | -4/Warlord | Identified exit to Proximity Caves 9346 | -4/Warlord | Entered Proximity Caves 9348 | -3/Proximity Caves | Reached level 23 9491 | -3/Proximity Caves | Entered Research 9492 | -3/Research | Identified exit to Quarantine 9493 | -3/Research | Loaded intel: 97 machine locations 9493 | -3/Research | Reached level 24 9494 | -3/Research | Loaded intel: 20 terminal locations 9499 | -3/Research | Upgraded with Utility slot (x1) 9597 | -3/Research | Identified exit to Research 9610 | -3/Research | Reached level 25 9667 | -3/Research | Fabricated Plasma Sword? 9673 | -3/Research | Found Enh. Force Lance 9731 | -3/Research | Entered another Research area 9731 | -2/Research | Warlord forces began assault on 0b10 9732 | -2/Research | Loaded intel: 97 machine locations 9733 | -2/Research | Reached level 26 9820 | -2/Research | Spotted B-90 Cyclops 9831 | -2/Research | Revealed the true nature of CR-A16's Pointy Stick 9831 | -2/Research | Destroyed B-90 Cyclops 9839 | -2/Research | Upgraded with Utility slot (x1) 9841 | -2/Research | Research machine network offline 9849 | -2/Research | Reached level 27 9856 | -2/Research | Found Antimissile System 9866 | -2/Research | Discovered new exit (range 13) 9873 | -2/Research | Identified exit to Access 9880 | -2/Research | Met up with Warlord 9886 | -2/Research | Destroyed WI-5CB(K) 9899 | -2/Research | Reached level 28 9903 | -2/Research | Destroyed YD-5JG(K) 9906 | -2/Research | Found Prototype Slashing Weapon 9906 | -2/Research | Identified Particle Cleaver 10006 | -2/Research | Destroyed VM-X1U(K) 10008 | -2/Research | Upgraded with Weapon slot (x1) 10008 | -2/Research | Found Particle Cleaver 10133 | -2/Research | Borebot progress halted 10134 | -2/Research | Found Nanosword 10137 | -2/Research | Found Nanosword 10247 | -2/Research | Borebot progress halted 10301 | -2/Research | Borebot progress halted 10310 | -2/Research | Build established: Scavenger-Scout 10731 | -2/Research | Warlord invited to help at Command 10748 | -2/Research | Entered Access 10749 | -1/Access | Loaded intel: 117 machine locations 10750 | -1/Access | Reached level 29 10750 | -1/Access | Reached level 30 10878 | -1/Access | Discovered new exit (range 14) 11003 | -1/Access | Discovered new exit (range 8) 11005 | -1/Access | Entered Command 11006 | -1/Command | Loaded intel: 57 machine locations 11007 | -1/Command | Reached level 31 11007 | -1/Command | Reached level 32 11028 | -1/Command | Disengaged cave seal 11028 | -1/Command | Derelicts emerged from the dark tunnel 11028 | -1/Command | Welcomed Warlord to Command 11096 | -1/Command | Reached level 33 11146 | -1/Command | Spotted Combat Programmer 11202 | -1/Command | Spotted M Guard 11249 | -1/Command | Spotted Combat Programmer 11266 | -1/Command | Met MAIN.C 11276 | -1/Command | Spotted M Guard 11282 | -1/Command | 0b10 Conduit disabled 11302 | -1/Command | Core integrity fell below 50% 11306 | -1/Command | Reached level 34 11306 | -1/Command | Destroyed MAIN.C Shell 11308 | -1/Command | MAIN.C activated Command garrisons 11315 | -1/Command | Core integrity fell below 20% 11332 | -1/Command | System corruption reached 10% 11349 | -1/Command | Identified Transdimensional Reconstructor 11349 | -1/Command | Failed to warp due to unstable space 11362 | -1/Command | Destroyed by S-43 Plague with Heavy Machine Gun Last Messages --------------- 11353_ EMDS Slug penetrates Reinforced Barrier. 11354_ Entropy package melds with Heavy Barrier. 11354_ Hellfire Missile intercepted. 11355_ Concrete disintegrates. 11355_ Concrete destabilizing. 11355_ M Guard suffers critical hit (Destroy). 11355_ Nanoactuators blasted off. 11355_ EMDS Slug penetrates Combat Programmer. 11357_ Zio. Glidesys II destroyed. 11357_ Combat Programmer resets S-43 Plague, system corruption cleaned. 11357_ Combat Programmer resets Combat Programmer, system corruption cleaned. 11358_ Upgraded: Core Integrity (+150) 11358_ Hellfire Missile intercepted. 11359_ Entropy package melds with Heavy Barrier. 11359_ Penetrated by EMDS Slug. 11361_ Reinforced Barrier disintegrates. 11361_ System corrupted: Exp. Phase Shifter rejected. 11361_ Hellfire Missile intercepted. 11362_ ALERT: Security rotation in progress. Map ----- +----------------------------------------------------+ | ?????????????????????????????????????????????????? | | ?????????????????????????????????????????????????? | | ?????????????????????????????????????????????????? | | ?????????????????????????????????????????????????? | | ?????????????????""??????????????????????????????? | | ?????????????????T"??????????????????????????????? | | ?????????????????""??????????????????????????????? | | ?????????????????????????????????????????????????? | | ???????????????????????#######################???? | | ???????????????????????#""" "" #???? | | ???????????????????????# " #???? | | ???????????????????????# ##### | | ???????????????????????#" "/ | | ???????????????????????#" M "%/ | | ???????????????????????# % Y "/ | | ???????????????????????# " pp! ##### | | ???????????????????????# " s #???? | | ???????????????????????# s s p C #???? | | ??????????????????????## Yss % "#???? | | ??????????????????????#; p=%* """#???? | | ??????????????????????## %%! """""#???? | | ???????????????????????# """""""#???? | | ??????????????????????## " #???? | | ??????????????????????# " " #???? | | ?????????????????????"""! " " " " #???? | | ?????????????????????""" @ " " " " "" #???? | | ?????????????????????""" %% " " " " ????? | | "??????????????????????# "" """"" " ????? | | "??????????????????????# " """ " "" """" #???? | | ???????????????????????# """ " " " ? #???? | | ???????????????????????###################???????? | | ?????????????????????????????????????????????????? | | ?????????????????????????????????????????????????? | | ?????????????????????????????????????????????????? | | ?????????????????????????????????????????????????? | | ?????????????????????????????????????????????????? | | ?????????????????????????????????????????????????? | | ?????????????????????????????????????????????????? | | ?????????????????????????????????????????????????? | | ?????????????????????????????????????????????????? | | ?????????????????????????????????????????????????? | | ?????????????????????????????????????????????????? | | ?????????????????????????????????????????????????? | | ?????????????????????????????????????????????????? | | ?????????????????????????????????????????????????? | | ?????????????????????????????????????????????????? | | ?????????????????????????????????????????????????? | | ?????????????????????????????????????????????????? | | ?????????????????????????????????????????????????? | | ?????????????????????????????????????????????????? | +----------------------------------------------------+ Best States ------------- Heat Dissipation 69 Energy Generation 75 Energy Capacity 700 Matter Stores 300 Matter Capacity 300 Sight Range 16 Robot Scan Range 19 Terrain Scan Range 24 Terrain Scan Density 110 Jamming Range 14 Power Amplification 40 Additional Mass Support 9 Armor Coverage 400 Resistance: KI 20 Resistance: TH 50 Weapon Shielding 33 Point Defense Rating 240 Melee Speed Boost 30 Phase Shifting 20 Evasion (%) 95 Melee Accuracy 16 Target Analysis 10 Core Analysis 15 Armor Integrity Analysis 40 Offensive Hacking 15 Defensive Hacking 26 Item Schematics ----------------- Combat Drone Bay | -7/Data Miner | Free Lgt. Regenerative Plating | -7/Data Miner | Free Cmb. Gravmag System | -7/Data Miner | Free Exp. Cesium-ion Thruster | -7/Data Miner | Free Exp. Terrain Scan Processor | -7/Data Miner | Free Tactical Coordination Suite | -7/Data Miner | Free Cloaking Device | -7/Data Miner | Free Mni. Smartbomb Launcher | -7/Data Miner | Free Plasma Sword | -7/Data Miner | Free Cld. Airjet | -5/Factory | Hacked Q-thruster | -5/Factory | Hacked Mic. Fission Core | -5/Factory | Hacked Assault Drone Bay | -5/Zhirov | Free Exp. Heat Sink | -5/Zhirov | Free Exp. Optical Array | -5/Zhirov | Free Imp. Arc Thrower | -5/Zhirov | Free Centrium Wheel | -3/Research | Hacked Centrium Greatsword | -3/Research | Hacked Robot Schematics ------------------ S-27 Virus | -7/Data Miner | Free G-50 Soldier | -7/Data Miner | Free G-67 Veteran | -7/Data Miner | Free L-41 Fighter | -7/Data Miner | Free X-72 Disruptor | -7/Data Miner | Free P-70 Sage | -7/Data Miner | Free I-36 Angel | -7/Data Miner | Free I-47 Archangel | -7/Data Miner | Free Fabricated ------------ Plasma Sword | x1 | -3/Research Alien Tech Used ----------------- Core Expander Integrated Dissipator Transdimensional Reconstructor Achievements -------------- Origins Challenges ------------ None RPGLIKE | -11 -10 -10 -10 -9 -8 -7 -7 -7 -7 -6 -6 -6 -6 -6 -6 -5 -5 -5 -5 -5 -4 -4 -4 -4 -4 -3 -3 -2 -1 -1 --------- Run | Scr Mat Min Exi Min Mat Fac Low Low Dat Pro Fac Low Low Zio Dee Pro Fac Upp Upp Zhi Pro Fac Upp Upp War Pro Res Res Acc Com Levels Raised 33 | . . 1 . 1 4 1 1 1 1 1 1 . 1 . 1 1 1 . 1 . 1 2 . . 1 1 2 3 2 4 XP Earned 53661 | 3000 220 2075 350 950 5882 2060 825 1500 2150 1075 1910 500 500 500 1500 1000 1880 500 500 650 1000 2690 500 500 1167 1200 2845 5417 2400 6415 XP Spent 52350 | 1000 800 1250 . . 7000 3150 550 . 2000 270 4950 . . 1000 1310 . . 2645 . . . 2955 3200 . 125 . 3500 4900 . 11745 Upgrades 86 | 2 1 3 . . 7 3 2 . 1 3 7 . . 1 3 . . 2 . . . 2 1 . 2 . 1 2 . 43 Power Slot 1 | . . . . . . . 1 . . . . . . . . . . . . . . . . . . . . . . . Propulsion Slot 5 | 1 . . . . 4 . . . . . . . . . . . . . . . . . . . . . . . . . Utility Slot 12 | . . 1 . . 2 2 . . 1 . 1 . . . . . . 1 . . . 1 1 . . . 1 1 . . Weapon Slot 3 | 1 1 . . . . . . . . . . . . . . . . . . . . . . . . . . 1 . . Core Integrity 43 | . . . . . . . . . . . . . . . 2 . . 1 . . . 1 . . . . . . . 39 Heat Dissipation 4 | . . . . . . . 1 . . 3 . . . . . . . . . . . . . . . . . . . . Mass Support 1 | . . . . . 1 . . . . . . . . . . . . . . . . . . . . . . . . . Inventory Capacity 5 | . . 2 . . . . . . . . 1 . . 1 1 . . . . . . . . . . . . . . . Sensor Range 2 | . . . . . . . . . . . . . . . . . . . . . . . . . 2 . . . . . Terrain Scan Density 1 | . . . . . . 1 . . . . . . . . . . . . . . . . . . . . . . . . Hack Attack % 3 | . . . . . . . . . . . 3 . . . . . . . . . . . . . . . . . . . Hack Defense % 2 | . . . . . . . . . . . 2 . . . . . . . . . . . . . . . . . . . KI Resistance % 4 | . . . . . . . . . . . . . . . . . . . . . . . . . . . . . . 4 Protomatter Created 1298 | . . 47 . . 364 . 144 146 . . . . . . 51 . . . . . 74 . . . . . 70 228 79 95 Integrity Restored 3339 | . . 180 . . 943 . 249 . . . . 156 . . 153 . . . . . 222 . . . 975 . 171 82 72 136 Core 2541 | . . 180 . . 704 . 131 . . . . 156 . . 153 . . . . . 222 . . . 697 . 106 54 18 120 Parts 798 | . . . . . 239 . 118 . . . . . . . . . . . . . . . . . 278 . 65 28 54 16 Protomatter Decayed 4555 | . . 94 . . 39 36 166 137 . . . 118 . . . . . . . . . . . . 383 . . 2809 106 667 Game ------ Seed EtherialProtonRegenerator Manual? 0 Play Time 03:32:43 Cumulative 355.6 hours Start 2021.07.18 @ 13:01:39 End 2021.07.18 @ 22:17:42 Sessions 3 Manual Loads 0 Difficulty Rogue Special Mode Winter2019/RPGLIKE Game No. 180 Rogue 177 Adventurer 1 Explorer 2 Win Type - Total 5 Types 3/1/1/0/0/0/0/0/0 Lore% 82 Gallery% 90 Achievement% 69 Wizard Run 0 Options --------- ASCII 0 Keyboard 1 Movement Numpad Keybinds 1 Fullscreen 1 Font 24/Terminus Map View 76x50 Tactical HUD 1 Map Filters NONE Filters LOW_CONTRAST(0,0,0) Steam 1 RUN: 97ad51ed-29b7-4586-9058-b1f973eb6aeb